bitfinex/quotes_BTCUSD_20250814
["timestamp","ask_amount","ask_price","bid_price","bid_amount"]
[1755201067032,0.26038731,118420.0,118410.0,0.18606536]
[1755201067239,0.26243731,118420.0,118410.0,0.18606536]
[1755201067444,0.4313277,118420.0,118410.0,0.18606536]
[1755201067769,0.26343731,118420.0,118410.0,0.18606536]
[1755201068184,0.22441325,118420.0,118410.0,0.18606536]
[1755201071065,0.08682325,118420.0,118410.0,0.65246424]
[1755201071265,0.21910325,118420.0,118410.0,0.65246424]
[1755201071479,0.13658,118420.0,118410.0,0.65246424]
[1755201072065,0.0041,118420.0,118410.0,0.65246424]
[1755201072291,0.0041,118420.0,118410.0,0.68104524]
[1755201072482,0.0041,118420.0,118410.0,0.67781524]
[1755201072683,0.0031,118420.0,118410.0,0.67781524]
[1755201073169,0.0041,118420.0,118410.0,0.67781524]
[1755201073406,0.0021,118420.0,118410.0,0.67781524]
[1755201073554,0.0021,118420.0,118410.0,0.76029967]
[1755201073761,0.0031,118420.0,118410.0,0.76029967]
[1755201074473,0.0031,118420.0,118410.0,0.67781524]
[1755201075060,0.0031,118420.0,118410.0,0.68104524]
[1755201076375,0.0031,118420.0,118410.0,1.28524524]
[1755201077595,0.0011,118420.0,118410.0,1.28524524]
[1755201078474,0.0011,118420.0,118410.0,1.31121902]
[1755201079062,0.0011,118420.0,118410.0,1.39370345]
[1755201079267,1e-08,118420.0,118410.0,1.2122267]
[1755201079958,1e-08,118420.0,118410.0,1.2142267]
[1755201080164,1e-08,118420.0,118410.0,1.2122267]
[1755201080574,1e-08,118420.0,118410.0,1.2152267]
[1755201081712,1e-08,118420.0,118410.0,1.2172267]
[1755201082611,1e-08,118420.0,118410.0,1.2408267]
[1755201084291,1e-08,118420.0,118410.0,1.5050267]
[1755201085017,1e-08,118420.0,118410.0,1.6372267]
[1755201088580,1e-08,118420.0,118410.0,1.45545292]
[1755201088792,1e-08,118420.0,118410.0,1.58426292]
[1755201091200,1e-08,118420.0,118410.0,1.45222292]
[1755201091412,0.00506001,118420.0,118410.0,1.58430292]
[1755201091822,0.00506001,118420.0,118410.0,1.58217292]
[1755201092434,1e-08,118420.0,118410.0,1.58430292]
[1755201094992,0.00205001,118420.0,118410.0,1.58430292]
[1755201096341,0.00205001,118420.0,118410.0,1.45222292]
[1755201096547,0.00205001,118420.0,118410.0,1.58418292]
[1755201097243,1e-08,118420.0,118410.0,1.58418292]
[1755201097671,0.00209001,118420.0,118410.0,1.58414292]
[1755201098072,0.00525001,118420.0,118410.0,1.58414292]
[1755201098423,0.00525001,118420.0,118410.0,0.82061636]
[1755201098631,0.00525001,118420.0,118410.0,0.95249636]
[1755201098813,0.00525001,118420.0,118410.0,0.93533565]
[1755201099050,0.00525001,118420.0,118410.0,0.48061636]
[1755201099265,0.00525001,118420.0,118410.0,0.61253636]
[1755201099466,0.00525001,118420.0,118410.0,0.94753636]
[1755201099685,0.00525001,118420.0,118410.0,0.94953636]
[1755201100086,0.00525001,118420.0,118410.0,0.55341636]
[1755201102182,0.00525001,118420.0,118410.0,0.21341636]
[1755201102183,0.08797326,118420.0,118410.0,0.21341636]
[1755201102602,0.08797326,118420.0,118410.0,0.18806536]
[1755201103034,0.08797326,118420.0,118410.0,0.23779392]
[1755201103668,0.08797326,118420.0,118410.0,0.21341736]
[1755201104121,0.08797326,118420.0,118410.0,0.34533736]
[1755201105048,0.00525001,118420.0,118410.0,0.81160624]
[1755201105503,1e-08,118420.0,118410.0,0.81160624]
[1755201105948,1e-08,118420.0,118410.0,1.15472624]
[1755201106161,1e-08,118420.0,118410.0,1.23721067]
[1755201106827,1e-08,118420.0,118410.0,0.68541736]
[1755201106828,0.00525001,118420.0,118410.0,0.68541736]
[1755201107040,0.08797326,118420.0,118410.0,0.21341736]
[1755201107303,0.25686365,118420.0,118410.0,0.18806536]
[1755201107573,0.27431267,118420.0,118410.0,0.18806536]
[1755201108057,0.27431267,118420.0,118410.0,0.18606536]
[1755201108297,0.10542228,118420.0,118410.0,0.18606536]
[1755201109218,0.10642228,118420.0,118410.0,0.18606536]
[1755201109686,0.27531267,118420.0,118410.0,0.18606536]
[1755201109926,0.10642228,118420.0,118410.0,0.18606536]
[1755201110545,0.27531267,118420.0,118410.0,0.18606536]
[1755201110753,0.01744902,118410.0,118400.0,0.18607725]
[1755201110962,0.23738227,118410.0,118400.0,0.18607725]
[1755201113556,0.40628692,118410.0,118400.0,0.18607725]
[1755201114491,0.18636793,118400.0,118390.0,0.01716071]
[1755201114703,0.16893318,118390.0,118380.0,0.21146165]
[1755201114910,0.38574643,118390.0,118380.0,0.19430094]
[1755201115124,0.40635545,118390.0,118380.0,0.025358]
[1755201115341,0.16894745,118380.0,118370.0,0.1861211]
[1755201115555,0.16896173,118370.0,118360.0,0.21149771]
[1755201115769,0.38893498,118370.0,118360.0,0.04252171]
[1755201115985,0.406384,118370.0,118360.0,0.04252171]
[1755201116195,0.406384,118370.0,118360.0,0.21149771]
[1755201116405,0.23742227,118370.0,118360.0,0.18613671]
[1755201116826,0.23747148,118370.0,118360.0,0.18613671]
[1755201117256,0.40643321,118370.0,118360.0,0.18613671]
[1755201118457,0.40643321,118370.0,118360.0,0.01716071]
[1755201118666,0.40643321,118370.0,118360.0,0.18613671]
[1755201118872,0.23747148,118370.0,118360.0,0.18613671]
[1755201120374,0.40643321,118370.0,118360.0,0.18613671]
[1755201120601,0.168976,118360.0,118350.0,0.1861097]
[1755201120825,0.31449017,118360.0,118350.0,0.01716071]
[1755201121043,0.33193919,118360.0,118350.0,0.01716071]
[1755201121234,0.27439827,118360.0,118350.0,0.01716071]
[1755201121447,0.10542227,118360.0,118350.0,0.18615099]
[1755201121663,0.27439827,118360.0,118350.0,0.18615099]
[1755201121880,0.27439827,118360.0,118350.0,0.01716071]
[1755201122084,0.27439827,118360.0,118350.0,0.18615099]
[1755201122979,0.27539827,118360.0,118350.0,0.18615099]
[1755201124537,0.10642227,118360.0,118350.0,0.18615099]
[1755201125818,0.27539827,118360.0,118350.0,0.18615099]
[1755201126859,0.10642227,118360.0,118350.0,0.18615099]
[1755201127563,0.23554227,118360.0,118350.0,0.18817099]
[1755201127986,0.23851227,118360.0,118350.0,0.18615099]
[1755201128422,0.40648827,118360.0,118350.0,0.18615099]
[1755201128878,0.40748827,118360.0,118350.0,0.18615099]
[1755201129342,0.46413837,118360.0,118350.0,0.18615099]
[1755201129592,0.01744902,118350.0,118340.0,0.01716071]
[1755201129802,0.27120255,118350.0,118340.0,0.01716071]
[1755201129974,0.27417255,118350.0,118340.0,0.01716071]
[1755201130425,0.27417255,118350.0,118340.0,0.18616527]
[1755201130637,0.10518227,118350.0,118340.0,0.18616527]
[1755201131418,0.10518227,118350.0,118340.0,0.18818527]
[1755201131642,0.21548325,118350.0,118340.0,0.18818527]
[1755201131875,0.21648325,118350.0,118340.0,0.18818527]
[1755201132079,0.21648325,118350.0,118340.0,0.27063173]
[1755201132287,0.21648325,118350.0,118340.0,0.27372173]
[1755201132507,0.21648325,118350.0,118340.0,0.19127527]
[1755201132753,0.001,118350.0,118340.0,0.65554415]
[1755201134013,0.13292,118360.0,118350.0,0.16899028]
[1755201134191,0.08272325,118360.0,118350.0,0.65552987]
[1755201134423,4.921e-05,118370.0,118360.0,0.18613671]
[1755201134626,0.13288921,118370.0,118360.0,0.18815671]
[1755201134787,0.14863818,118370.0,118360.0,0.18815671]
[1755201135994,0.14963818,118370.0,118360.0,0.18815671]
[1755201137916,0.15167818,118370.0,118360.0,0.18815671]
[1755201138130,0.40633316,118370.0,118360.0,0.18613671]
[1755201138300,0.42378218,118370.0,118360.0,0.01716071]
[1755201138504,0.42378218,118370.0,118350.0,0.18615099]
[1755201138710,0.08272325,118360.0,118350.0,0.18615099]
[1755201138887,0.10348222,118360.0,118350.0,0.18615099]
[1755201139347,0.27245822,118360.0,118350.0,0.18615099]
[1755201139577,0.33173404,118360.0,118350.0,0.18615099]
[1755201139951,0.10348222,118360.0,118350.0,0.18615099]
[1755201140780,0.28990724,118360.0,118350.0,0.18615099]
[1755201141717,0.28994554,118360.0,118350.0,0.18615099]
[1755201142807,0.28994554,118360.0,118350.0,0.01716071]
[1755201144260,0.29929557,118360.0,118350.0,0.01716071]
[1755201144695,0.29094554,118360.0,118350.0,0.01716071]
[1755201144906,0.35022519,118360.0,118350.0,0.01716071]
[1755201145877,0.29094554,118360.0,118350.0,0.01716071]
[1755201149237,0.29294554,118360.0,118350.0,0.01716071]
[1755201149444,0.29294554,118360.0,118350.0,0.18615099]
[1755201149648,0.29294554,118360.0,118350.0,0.01716071]
[1755201150001,0.29296338,118360.0,118350.0,0.18615099]
[1755201150201,0.42528338,118360.0,118350.0,0.18615099]
[1755201151494,0.4560578,118360.0,118350.0,0.18615099]
[1755201151984,0.42528338,118360.0,118350.0,0.18615099]
[1755201153495,0.1864393,118350.0,118340.0,0.01716071]
[1755201153708,0.28997766,118350.0,118340.0,0.01716071]
[1755201153904,0.28997754,118350.0,118340.0,0.01716071]
[1755201154267,0.16900456,118340.0,118330.0,0.16901884]
[1755201154539,0.4018528,118340.0,118330.0,0.18617955]
[1755201154738,0.16901884,118330.0,118320.0,0.18619384]
[1755201154955,0.27255708,118330.0,118320.0,0.18619384]
[1755201156051,0.27260627,118330.0,118320.0,0.18619384]
[1755201157479,0.10258743,118330.0,118320.0,0.18719384]
[1755201158315,0.08678244,118330.0,118320.0,0.18819384]
[1755201158749,0.25580128,118330.0,118320.0,0.18819384]
[1755201159724,0.08177244,118330.0,118320.0,0.18819384]
[1755201159905,0.08177244,118330.0,118320.0,0.19031384]
[1755201160572,0.13208919,118330.0,118320.0,0.74049928]
[1755201160760,0.13208919,118330.0,118320.0,0.65801485]
[1755201161006,0.13208919,118330.0,118320.0,0.19330384]
[1755201165521,0.13288919,118330.0,118320.0,0.19330384]
[1755201165741,0.13288919,118330.0,118320.0,0.19031384]
[1755201166300,0.22080244,118330.0,118320.0,0.18819384]
[1755201166504,0.38982128,118330.0,118320.0,0.18819384]
[1755201166927,0.22080244,118330.0,118320.0,0.18819384]
[1755201167130,0.21760244,118330.0,118320.0,0.19031384]
[1755201167417,0.38463128,118330.0,118320.0,0.19031384]
[1755201167625,0.38662128,118330.0,118320.0,0.18819384]
[1755201167822,0.38982128,118330.0,118320.0,0.18819384]
[1755201168022,0.44570394,118330.0,118320.0,0.18819384]
[1755201168243,0.92786397,118330.0,118320.0,0.002]
[1755201168468,0.92778397,118330.0,118320.0,0.002]
[1755201168668,0.46307296,118330.0,118320.0,0.002]
[1755201169169,0.46307296,118330.0,118320.0,0.001]
[1755201169341,0.46507296,118330.0,118320.0,0.001]
[1755201169557,0.4091903,118330.0,118320.0,0.001]
[1755201169962,0.16903313,118320.0,118310.0,0.18620759]
[1755201170164,0.25374638,118320.0,118310.0,0.18620759]
[1755201170367,0.25694638,118320.0,118310.0,0.18620759]
[1755201170593,0.08791325,118320.0,118310.0,0.18620759]
[1755201170815,0.22063325,118320.0,118310.0,0.18620759]
[1755201171012,0.08272325,118320.0,118310.0,0.18832759]
[1755201171214,0.08272325,118320.0,118310.0,0.6560286]
[1755201171437,0.21540325,118320.0,118310.0,0.6560286]
[1755201172224,0.21540325,118320.0,118310.0,0.19131759]
[1755201173374,0.00204919,118330.0,118320.0,0.18619384]
[1755201173581,0.00204919,118330.0,118320.0,0.17115313]
[1755201173747,0.00403919,118330.0,118320.0,0.18831384]
[1755201175069,0.00503919,118330.0,118320.0,0.18831384]
[1755201175493,0.00603919,118330.0,118320.0,0.18831384]
[1755201177426,0.00404919,118330.0,118320.0,0.65601485]
[1755201177638,0.13652919,118330.0,118320.0,0.73849928]
[1755201178015,0.13652919,118330.0,118320.0,0.19130384]
[1755201178256,0.13652919,118330.0,118320.0,0.18831384]
[1755201178458,0.13652919,118330.0,118320.0,0.19130384]
[1755201178662,0.13552919,118330.0,118320.0,0.19130384]
[1755201179446,0.13544919,118330.0,118320.0,0.65601485]
[1755201180161,0.13444919,118330.0,118320.0,0.65601485]
[1755201180421,0.13444919,118330.0,118320.0,0.19130384]
[1755201181432,0.13444919,118330.0,118320.0,0.18831384]
[1755201181636,0.13643919,118330.0,118320.0,0.18831384]
[1755201181872,0.13963919,118330.0,118320.0,0.18831384]
[1755201182340,0.22236244,118330.0,118320.0,0.18619384]
[1755201182751,0.23573186,118330.0,118320.0,0.18619384]
[1755201182927,0.4047507,118330.0,118320.0,0.18619384]
[1755201183144,0.39138128,118330.0,118320.0,0.18619384]
[1755201183305,0.22236244,118330.0,118320.0,0.18619384]
[1755201183500,0.39238128,118330.0,118320.0,0.18619384]
[1755201183958,0.39238128,118330.0,118320.0,0.01716071]
[1755201184354,0.39238128,118330.0,118310.0,0.16904688]
[1755201184515,0.25495638,118320.0,118310.0,0.01716071]
[1755201184724,0.1690617,118300.0,118290.0,0.18657076]
[1755201184935,0.38621495,118300.0,118290.0,0.18657076]
[1755201185126,0.38941495,118300.0,118290.0,0.18657076]
[1755201185988,0.38941495,118300.0,118290.0,0.0004]
[1755201185989,0.42253997,118300.0,118290.0,0.0004]
[1755201186213,0.43998899,118300.0,118290.0,0.0004]
[1755201186426,0.49066899,118300.0,118290.0,0.0004]
[1755201186638,0.95538,118300.0,118290.0,0.0004]
[1755201187560,1.36304186,118300.0,118290.0,0.0004]
[1755201187761,1.35382465,118300.0,118290.0,0.0004]
[1755201188379,1.35282465,118300.0,118290.0,0.0004]
[1755201188789,1.35382465,118300.0,118290.0,0.0004]
[1755201188992,1.28616279,118300.0,118290.0,0.0004]
[1755201189205,1.26807,118300.0,118290.0,0.0004]
[1755201189407,1.27107,118300.0,118290.0,0.0004]
[1755201189786,1.2477,118300.0,118290.0,0.0004]
[1755201190005,1.2487,118300.0,118290.0,0.0004]
[1755201190341,0.78398899,118300.0,118290.0,0.0004]
[1755201190545,1.2477,118300.0,118290.0,0.0004]
[1755201190864,1.2507,118300.0,118290.0,0.0004]
[1755201191259,1.2527,118300.0,118290.0,0.0004]
[1755201191463,0.28342397,118300.0,118290.0,0.0004]
[1755201191656,0.39885495,118300.0,118290.0,0.0004]
[1755201192122,0.39885495,118300.0,118290.0,0.17153599]
[1755201192123,0.09371325,118300.0,118290.0,0.17153599]
[1755201192355,0.39561495,118300.0,118290.0,0.17153599]
[1755201192528,0.40906397,118300.0,118290.0,0.17153599]
[1755201192976,0.41206397,118300.0,118290.0,0.17153599]
[1755201193173,0.08772325,118300.0,118290.0,0.20559833]
[1755201193354,0.22256325,118300.0,118290.0,0.17153599]
[1755201193626,0.40907397,118300.0,118290.0,0.17153599]
[1755201194035,0.24001227,118300.0,118290.0,0.17153599]
[1755201195120,0.10717227,118300.0,118290.0,0.1918567]
[1755201195297,0.23993227,118300.0,118290.0,0.1918567]
[1755201195853,0.23993227,118300.0,118290.0,0.1886967]
[1755201196065,0.23993227,118300.0,118290.0,0.1918567]
[1755201196267,0.08972325,118300.0,118290.0,0.1918567]
[1755201196472,0.22244325,118300.0,118290.0,0.65656771]
[1755201197226,0.08972325,118300.0,118290.0,0.1918567]
[1755201197398,0.22256325,118300.0,118290.0,0.1918567]
[1755201201430,0.007,118300.0,118290.0,0.65656771]
[1755201201843,0.13964,118300.0,118290.0,0.65656771]
[1755201202066,0.13964,118300.0,118290.0,0.1918567]
[1755201202500,0.13964,118300.0,118290.0,0.27434113]
[1755201202671,0.13464,118300.0,118290.0,0.27434113]
[1755201202905,0.13464,118300.0,118290.0,0.27534113]
[1755201203112,0.002,118300.0,118290.0,0.1928567]
[1755201203336,0.13456,118300.0,118290.0,0.1928567]
[1755201206550,0.002,118300.0,118290.0,0.65756771]
[1755201206794,0.13476,118300.0,118290.0,1.08005214]
[1755201206953,0.002,118300.0,118290.0,1.08005214]
[1755201207323,0.00411,118300.0,118290.0,0.1896967]
[1755201207558,0.00719,118300.0,118290.0,0.1896967]
[1755201207757,0.13995,118300.0,118290.0,0.1876367]
[1755201208320,0.13995,118300.0,118290.0,0.1866367]
[1755201208497,0.13995,118300.0,118290.0,0.1876367]
[1755201208878,0.13995,118300.0,118290.0,0.16947599]
[1755201209086,0.13995,118300.0,118290.0,0.1866367]
[1755201209698,0.13476,118300.0,118290.0,0.1886967]
[1755201209963,0.002,118300.0,118290.0,0.22479111]
[1755201210166,0.002,118300.0,118290.0,0.1918567]
[1755201212123,0.002,118300.0,118290.0,0.1928567]
[1755201212377,0.002,118300.0,118290.0,0.65756771]
[1755201213147,0.002,118300.0,118290.0,0.1928567]
[1755201216079,0.002,118300.0,118290.0,0.65756771]
[1755201216480,0.002,118300.0,118290.0,0.99756771]
[1755201216893,0.002,118300.0,118290.0,1.08005214]
[1755201217312,0.002,118300.0,118290.0,0.5296967]
[1755201217497,0.00403,118300.0,118290.0,0.5296967]
[1755201217696,0.05788,118300.0,118290.0,0.1876367]
[1755201217906,0.13968,118300.0,118290.0,0.1876367]
[1755201218845,0.3087417,118300.0,118290.0,0.1866367]
[1755201219443,0.39146495,118300.0,118290.0,0.1866367]
[1755201219895,0.22240325,118300.0,118290.0,0.1866367]
[1755201220850,0.22240325,118300.0,118290.0,0.99659771]
[1755201220851,0.003,118300.0,118290.0,0.99659771]
[1755201221484,0.00287648,118300.0,118290.0,0.99659771]
[1755201221694,0.00187648,118300.0,118290.0,0.99659771]
[1755201221906,0.00187648,118300.0,118290.0,1.07908214]
[1755201222132,0.00287648,118300.0,118290.0,0.61437113]
[1755201222347,0.00187648,118300.0,118290.0,0.5287367]
[1755201222564,0.00187648,118300.0,118290.0,0.5297367]
[1755201224160,0.00187648,118300.0,118290.0,0.5328867]
[1755201224366,0.00187648,118300.0,118290.0,0.99759771]
[1755201225298,0.00187648,118300.0,118290.0,0.99444771]
[1755201225505,0.00187648,118300.0,118290.0,0.5297367]
[1755201226319,0.00390648,118300.0,118290.0,0.5297367]
[1755201226511,0.00707648,118300.0,118290.0,0.5276367]
[1755201226974,0.00390648,118300.0,118290.0,0.5297367]
[1755201227187,0.00187648,118300.0,118290.0,0.61222113]
[1755201229392,0.00187648,118300.0,118290.0,1.07693214]
[1755201229611,0.00187648,118300.0,118290.0,1.08008214]
[1755201230475,0.00187648,118300.0,118290.0,1.07693214]
[1755201231153,0.00187648,118300.0,118290.0,0.99444771]
[1755201235297,0.00187648,118300.0,118290.0,0.51257599]
[1755201235512,0.00707648,118300.0,118290.0,0.1876367]
[1755201237953,0.08979973,118300.0,118290.0,0.1876367]
[1755201240270,0.08979973,118300.0,118290.0,0.1866367]
[1755201246839,0.08979973,118300.0,118290.0,0.58330509]
[1755201247485,0.08979973,118300.0,118290.0,0.1866367]
[1755201247715,0.69520681,118300.0,118290.0,0.16947599]
[1755201248461,0.69520681,118300.0,118290.0,0.0004]
[1755201248877,0.29953842,118300.0,118290.0,0.0004]
[1755201249085,0.27731045,118300.0,118290.0,0.0004]
[1755201249298,0.27731045,118300.0,118290.0,0.16947599]
[1755201249520,0.10824875,118300.0,118290.0,0.16947599]
[1755201249743,0.27731045,118300.0,118290.0,0.16947599]
[1755201250004,0.74239475,118300.0,118290.0,0.0004]
[1755201250232,0.35979488,118300.0,118290.0,0.0004]
[1755201250448,0.36079488,118300.0,118290.0,0.0004]
[1755201251829,0.36079488,118300.0,118290.0,0.16947599]
[1755201252027,0.27831045,118300.0,118290.0,0.16947599]
[1755201252473,0.27831045,118300.0,118290.0,0.0004]
[1755201253588,0.27831045,118300.0,118290.0,0.16947599]
[1755201255731,0.27831045,118300.0,118290.0,0.0004]
[1755201255945,0.27831045,118300.0,118290.0,0.16947599]
[1755201256150,0.32098137,118300.0,118290.0,0.0004]
[1755201257856,0.78606567,118300.0,118290.0,0.0004]
[1755201262833,0.91882567,118300.0,118290.0,0.0004]
[1755201263618,0.45374137,118300.0,118290.0,0.0004]
[1755201264231,0.45374137,118300.0,118290.0,0.16947599]
[1755201264433,0.41107045,118300.0,118290.0,0.16947599]
[1755201264637,0.41107045,118300.0,118290.0,0.0004]
[1755201265713,0.41107045,118300.0,118290.0,0.16947599]
[1755201267335,0.41107045,118300.0,118290.0,0.0004]
[1755201267933,0.41107045,118300.0,118290.0,0.16947599]
[1755201268179,0.49355488,118300.0,118290.0,0.0004]
[1755201268756,0.89048181,118300.0,118290.0,0.0004]
[1755201269769,1.14116181,118300.0,118290.0,0.0004]
[1755201270605,1.14016181,118300.0,118290.0,0.0004]
[1755201270786,1.13916181,118300.0,118290.0,0.0004]
[1755201270935,1.14516181,118300.0,118290.0,0.0004]
[1755201273677,1.88208874,118300.0,118290.0,0.0004]
[1755201273877,1.90747674,118300.0,118290.0,0.0004]
[1755201274203,1.52635451,118300.0,118290.0,0.0004]
[1755201282173,1.93112073,118300.0,118290.0,1e-08]
[1755201282391,1.95612073,118300.0,118290.0,1e-08]
[1755201282593,1.96204653,118300.0,118290.0,1e-08]
[1755201283188,1.95904653,118300.0,118290.0,1e-08]
[1755201283579,1.96004653,118300.0,118290.0,1e-08]
[1755201283808,1.96304653,118300.0,118290.0,1e-08]
[1755201284462,1.5631196,118300.0,118290.0,1e-08]
[1755201284664,1.5671196,118300.0,118290.0,1e-08]
[1755201285516,1.96404653,118300.0,118290.0,1e-08]
[1755201285965,1.93904653,118300.0,118290.0,1e-08]
[1755201286275,1.96404653,118300.0,118290.0,1e-08]
[1755201286482,1.5671196,118300.0,118290.0,1e-08]
[1755201286718,1.60481091,118300.0,118290.0,1e-08]
[1755201286944,2.00173784,118300.0,118290.0,1e-08]
[1755201287309,1.97673784,118300.0,118290.0,1e-08]
[1755201287510,2.00173784,118300.0,118290.0,1e-08]
[1755201287957,1.97673784,118300.0,118290.0,1e-08]
[1755201288209,1.57933091,118300.0,118290.0,1e-08]
[1755201288845,1.60433091,118300.0,118290.0,1e-08]
[1755201289813,1.57933091,118300.0,118290.0,1e-08]
[1755201290224,0.48483567,118300.0,118290.0,1e-08]
[1755201290448,0.48483567,118300.0,118290.0,0.00525001]
[1755201290449,0.10840443,118300.0,118290.0,0.00525001]
[1755201290658,0.39394143,118300.0,118290.0,0.00525001]
[1755201291096,0.80665678,118300.0,118290.0,0.00213001]
[1755201291293,0.80265678,118300.0,118290.0,0.00213001]
[1755201291510,0.87930054,118300.0,118290.0,0.00213001]
[1755201291750,0.87530054,118300.0,118290.0,0.00213001]
[1755201292164,0.87850054,118300.0,118290.0,0.00213001]
[1755201292368,0.87325054,118300.0,118290.0,0.00213001]
[1755201292798,0.47632361,118300.0,118290.0,0.00213001]
[1755201293022,0.87325054,118300.0,118290.0,0.00213001]
[1755201293479,0.87325054,118300.0,118290.0,1e-08]
[1755201293480,0.87850054,118300.0,118290.0,1e-08]
[1755201293689,1.61542747,118300.0,118290.0,1e-08]
[1755201293905,1.65362381,118300.0,118290.0,1e-08]
[1755201294062,1.65462381,118300.0,118290.0,1e-08]
[1755201294518,1.65362381,118300.0,118290.0,1e-08]
[1755201294730,1.65562381,118300.0,118290.0,1e-08]
[1755201295078,1.65862381,118300.0,118290.0,1e-08]
[1755201295769,1.85862381,118300.0,118290.0,1e-08]
[1755201296186,1.88401181,118300.0,118290.0,1e-08]
[1755201299017,1.48708488,118300.0,118290.0,1e-08]
[1755201299497,1.84581547,118300.0,118290.0,1e-08]
[1755201300262,1.84281547,118300.0,118290.0,1e-08]
[1755201300550,1.84281547,118300.0,118260.0,1e-08]
[1755201300551,0.52655361,118270.0,118260.0,1e-08]
[1755201300736,1.63961384,118270.0,118260.0,1e-08]
[1755201300981,1.70338313,118270.0,118260.0,1e-08]
[1755201301404,1.73176913,118270.0,118260.0,1e-08]
[1755201301622,1.73967178,118270.0,118260.0,1e-08]
[1755201301841,1.74267178,118270.0,118260.0,1e-08]
[1755201302053,0.94581792,118270.0,118260.0,1e-08]
[1755201302293,0.94488071,118270.0,118260.0,1e-08]
[1755201302509,0.97388071,118270.0,118260.0,1e-08]
[1755201303110,0.95281792,118270.0,118260.0,1e-08]
[1755201303534,0.94981792,118270.0,118260.0,1e-08]
[1755201303925,0.95181792,118270.0,118260.0,1e-08]
[1755201304266,0.94391527,118270.0,118260.0,1e-08]
[1755201304700,0.91891527,118270.0,118260.0,1e-08]
[1755201304917,0.94395527,118270.0,118260.0,1e-08]
[1755201305348,0.91895527,118270.0,118260.0,1e-08]
[1755201305567,0.94395527,118270.0,118260.0,1e-08]
[1755201307188,0.7344215,118250.0,118240.0,0.0004]
[1755201307394,1.22762083,118250.0,118240.0,0.00089326]
[1755201307609,0.38659651,118240.0,118230.0,0.0004]
[1755201307836,0.62591041,118240.0,118230.0,0.0004]
[1755201308055,1.09474405,118240.0,118230.0,0.0004]
[1755201308721,1.10258334,118240.0,118230.0,0.0004]
[1755201308978,1.16269335,118240.0,118230.0,0.0004]
[1755201309165,1.20150934,118240.0,118230.0,0.0004]
[1755201310580,1.20986851,118240.0,118230.0,0.0004]
[1755201310815,1.20986851,118240.0,118200.0,0.00363]
[1755201310816,0.72663944,118210.0,118200.0,0.0004]
[1755201311047,1.51213475,118210.0,118200.0,0.0024]
[1755201311272,1.47941949,118210.0,118200.0,0.0024]
[1755201311725,1.49698049,118210.0,118200.0,0.0024]
[1755201312721,1.54766049,118210.0,118200.0,0.0024]
[1755201316645,1.54766049,118210.0,118200.0,0.00563]
[1755201317300,1.16454049,118210.0,118200.0,0.00563]
[1755201317521,1.29694049,118210.0,118200.0,0.00563]
[1755201318178,1.29694049,118210.0,118200.0,0.00523]
[1755201319731,1.29694049,118210.0,118200.0,0.002]
[1755201321375,1.30215049,118210.0,118200.0,0.002]
[1755201322356,1.29694049,118210.0,118200.0,0.002]
[1755201322656,1.22879381,118210.0,118200.0,0.002]
[1755201322856,1.27947381,118210.0,118200.0,0.002]
[1755201323295,1.28743498,118210.0,118200.0,0.002]
[1755201323511,1.29058498,118210.0,118200.0,0.002]
[1755201323848,1.29058498,118210.0,118180.0,0.18639025]
[1755201323849,0.18666807,118190.0,118180.0,0.01716071]
[1755201324065,0.15154925,118190.0,118180.0,0.17446337]
[1755201324272,0.64589765,118190.0,118180.0,0.17446337]
[1755201324691,0.8151167,118190.0,118180.0,0.17446337]
[1755201325094,0.8151167,118190.0,118180.0,0.174611]
[1755201325387,0.8151167,118190.0,118180.0,0.177611]
[1755201325610,1.23687279,118190.0,118180.0,0.00514763]
[1755201325829,1.23687279,118190.0,118180.0,0.00314763]
[1755201326341,1.54963664,118190.0,118180.0,0.00314763]
[1755201326550,1.17489935,118180.0,118170.0,0.0004]
[1755201326736,1.41175597,118180.0,118170.0,0.00054777]
[1755201326975,1.4994504,118180.0,118170.0,0.00054777]
[1755201327094,1.4994504,118180.0,118170.0,0.00254777]
[1755201327313,1.41381597,118180.0,118170.0,0.00254777]
[1755201327704,1.41378561,118180.0,118170.0,0.00254777]
[1755201328106,1.41478561,118180.0,118170.0,0.00254777]
[1755201328307,1.42321573,118180.0,118170.0,0.00254777]
[1755201328507,1.42321573,118180.0,118170.0,0.00054777]
[1755201328723,1.57745258,118180.0,118170.0,0.00054777]
[1755201328923,1.60286358,118180.0,118170.0,0.00054777]
[1755201330587,1.58220057,118180.0,118170.0,0.00054777]
[1755201330957,1.60389877,118180.0,118170.0,0.00054777]
[1755201331171,1.60389877,118180.0,118170.0,0.00254777]
[1755201331597,1.60389877,118180.0,118170.0,0.00054777]
[1755201333638,1.60577525,118180.0,118170.0,0.00054777]
[1755201333853,0.18671103,118160.0,118150.0,0.19006583]
[1755201334055,0.42353248,118160.0,118150.0,0.19206583]
[1755201334488,0.50601691,118160.0,118150.0,0.19206583]
[1755201334922,0.42353248,118160.0,118150.0,0.19206583]
[1755201337364,0.89487186,118160.0,118150.0,0.0024]
[1755201338372,1.23487186,118160.0,118150.0,0.0004]
[1755201338772,1.25593465,118160.0,118150.0,0.0004]
[1755201340300,1.25693465,118160.0,118150.0,0.0004]
[1755201340511,1.33941908,118160.0,118150.0,0.0004]
[1755201341907,1.34377129,118160.0,118150.0,0.0004]
[1755201343057,1.59445129,118160.0,118150.0,0.0004]
[1755201343685,1.61551408,118160.0,118150.0,0.0004]
[1755201343912,1.61551408,118160.0,118140.0,0.0004]
[1755201343913,0.57740536,118150.0,118140.0,0.0004]
[1755201344118,1.6442467,118150.0,118140.0,0.0004]
[1755201345371,1.6442467,118150.0,118140.0,1e-08]
[1755201345742,2.11038608,118150.0,118140.0,1e-08]
[1755201346164,2.13538608,118150.0,118140.0,1e-08]
[1755201346373,2.11038608,118150.0,118140.0,1e-08]
[1755201346594,2.13738608,118150.0,118140.0,1e-08]
[1755201346831,2.14825958,118150.0,118140.0,1e-08]
[1755201347251,1.6821202,118150.0,118140.0,1e-08]
[1755201349793,1.72042587,118150.0,118140.0,1e-08]
[1755201351777,0.78525898,118140.0,118130.0,1e-08]
[1755201351987,1.98739383,118140.0,118130.0,1e-08]
[1755201352176,2.03395057,118140.0,118130.0,1e-08]
[1755201352412,1.10167181,118140.0,118130.0,1e-08]
[1755201352633,2.03395057,118140.0,118130.0,1e-08]
[1755201353100,2.12381057,118140.0,118130.0,1e-08]
[1755201353321,1.80637269,118130.0,118120.0,1e-08]
[1755201353542,2.33399857,118130.0,118120.0,1e-08]
[1755201353767,1.33789919,118130.0,118120.0,1e-08]
[1755201353987,1.04358773,118120.0,118110.0,0.0004]
[1755201354229,1.28250918,118120.0,118110.0,0.00054791]
[1755201354445,1.28560918,118120.0,118110.0,0.00054791]